fUST/lending_fUST_20250804
["ID","MTS","AMOUNT","RATE_DAILY","PERIOD"]
[377258434,1754307047427,-460.0,0.00034793,2]
[377258436,1754307047436,-460.0,0.00034793,2]
[377258438,1754307047446,-460.0,0.00034793,2]
[377258440,1754307047455,-460.0,0.00034793,2]
[377258442,1754307047466,-460.0,0.00034793,2]
[377258443,1754307047475,-770.88,0.00034793,2]
[377258445,1754307047485,-533.47,0.00034793,2]
[377258447,1754307047494,-460.0,0.00034793,2]
[377258449,1754307047503,-238.30607938,0.00034793,2]
[377258450,1754307047513,-1770.18,0.00034793,2]
[377258452,1754307047523,-460.0,0.00034793,2]
[377258454,1754307047533,-694.46,0.00034793,2]
[377258457,1754307047543,-612.74,0.00034793,2]
[377258459,1754307047553,-460.0,0.00034793,2]
[377258461,1754307047562,-460.0,0.00034793,2]
[377258463,1754307047571,-460.0,0.00034793,2]
[377258465,1754307047580,-460.0,0.00034793,2]
[377258467,1754307047590,-460.0,0.00034793,2]
[377258469,1754307047599,-460.0,0.00034793,2]
[377258471,1754307047608,-151.0,0.00034793,14]
[377258473,1754307047618,-460.0,0.00034793,2]
[377258475,1754307047627,-460.0,0.00034793,2]
[377258477,1754307047639,-460.0,0.00034793,2]
[377258479,1754307047650,-460.0,0.00034793,2]
[377258481,1754307047661,-464.32142642,0.00034793,2]
[377258483,1754307047672,-460.0,0.00034793,2]
[377258485,1754307047681,-642.04,0.00034793,2]
[377258487,1754307047690,-460.0,0.00034793,2]
[377258489,1754307047701,-460.0,0.00034793,2]
[377258491,1754307047711,-484.47,0.00034793,2]
[377258493,1754307047721,-466.43972615,0.00034793,2]
[377258495,1754307047732,-151.0,0.00034793,14]
[377258497,1754307047741,-646.44,0.00034793,2]
[377258499,1754307047750,-153.696676,0.00034793,14]
[377258501,1754307047760,-460.0,0.00034793,2]
[377258503,1754307047772,-967.59,0.00034793,2]
[377258505,1754307047782,-463.56714303,0.00034793,2]
[377258507,1754307047791,-151.0,0.00034793,14]
[377258509,1754307047800,-460.0,0.00034793,2]
[377258511,1754307047811,-190.244408,0.00034793,14]
[377258513,1754307047821,-190.244408,0.00034793,14]
[377258515,1754307047831,-460.0,0.00034793,2]
[377258517,1754307047841,-262.469383,0.00034793,14]
[377258519,1754307047851,-260.03057498,0.00034793,2]
[377258521,1754307047860,-262.469383,0.00034793,14]
[377258523,1754307047870,-460.0,0.00034793,2]
[377258525,1754307047879,-460.0,0.00034793,2]
[377258527,1754307047888,-151.0,0.00034793,14]
[377258529,1754307047897,-511.5,0.00034793,2]
[377258531,1754307047906,-180.22914868,0.00034793,2]
[377258533,1754307047916,-473.36572222,0.00034793,2]
[377258534,1754307047926,-460.0,0.00034793,2]
[377258536,1754307047936,-460.0,0.00034793,2]
[377258538,1754307047946,-166.20994,0.00034793,14]
[377258540,1754307047956,-460.0,0.00034793,2]
[377258542,1754307047965,-460.0,0.00034793,2]
[377258544,1754307047976,-166.20994,0.00034793,14]
[377258546,1754307047985,-460.0,0.00034793,2]
[377258548,1754307047996,-661.48,0.00034795,2]
[377258551,1754307048006,-714.96,0.00034795,2]
[377258553,1754307048019,-460.0,0.00034795,2]
[377258555,1754307048029,-460.0,0.00034795,2]
[377258557,1754307048039,-460.0,0.00034795,2]
[377258559,1754307048050,-165.576034,0.00034795,14]
[377258561,1754307048059,-165.576034,0.00034795,14]
[377258562,1754307048069,-228.940804,0.00034795,14]
[377258564,1754307048078,-151.0,0.00034795,14]
[377258566,1754307048088,-5683.10606921,0.00034795,2]
[377258587,1754307048278,-11468.05393079,0.00034795,2]
[377258589,1754307048288,-1690.03,0.00034795,2]
[377258591,1754307048298,-2856.01,0.00034795,2]
[377258593,1754307048308,-151.0,0.00034798,14]
[377258595,1754307048317,-151.0,0.00034798,14]
[377258597,1754307048326,-500.0,0.00034799,120]
[377258599,1754307048336,-460.0,0.00034799,2]
[377258601,1754307048346,-533.33,0.00034799,2]
[377258603,1754307048355,-622.16,0.00034799,2]
[377258605,1754307048364,-460.0,0.00034799,2]
[377258607,1754307048374,-460.0,0.00034799,2]
[377258608,1754307048384,-460.0,0.00034799,2]
[377258610,1754307048393,-460.0,0.00034799,2]
[377258612,1754307048403,-460.0,0.00034799,2]
[377258614,1754307048412,-460.0,0.00034799,2]
[377258616,1754307048421,-516.98428892,0.00034799,2]
[377258628,1754307048523,-460.0,0.00034799,2]
[377258630,1754307048534,-460.0,0.00034799,2]
[377258632,1754307048544,-460.0,0.00034799,2]
[377258634,1754307048554,-391.32729866,0.00034799,2]
[377258636,1754307048564,-524.72,0.00034799,2]
[377258639,1754307048574,-460.0,0.00034799,2]
[377258641,1754307048584,-460.0,0.00034799,2]
[377258643,1754307048594,-460.0,0.00034799,2]
[377258645,1754307048604,-5636.1,0.00034799,2]
[377258647,1754307048614,-5636.1,0.00034799,2]
[377258649,1754307048623,-5636.1,0.00034799,2]
[377258651,1754307048632,-5636.1,0.00034799,2]
[377258653,1754307048642,-5636.1,0.00034799,2]
[377258655,1754307048655,-5636.1,0.00034799,2]
[377258656,1754307048664,-5636.1,0.00034799,2]
[377258658,1754307048675,-1269.89,0.00034799,2]
[377258661,1754307048685,-1269.89,0.00034799,2]
[377258662,1754307048696,-1269.89,0.00034799,2]
[377258664,1754307048705,-1269.89,0.00034799,2]
[377258667,1754307048716,-1269.89,0.00034799,2]
[377258669,1754307048726,-1269.89,0.00034799,2]
[377258671,1754307048737,-1269.89,0.00034799,2]
[377258673,1754307048747,-1269.89,0.00034799,2]
[377258675,1754307048756,-1269.89,0.00034799,2]
[377258677,1754307048766,-1269.89,0.00034799,2]
[377258678,1754307048775,-1269.89,0.00034799,2]
[377258680,1754307048785,-1269.89,0.00034799,2]
[377258683,1754307048796,-1269.89,0.00034799,2]
[377258684,1754307048806,-1269.89,0.00034799,2]
[377258686,1754307048817,-1269.89,0.00034799,2]
[377258689,1754307048827,-1269.89,0.00034799,2]
[377258690,1754307048838,-1269.89,0.00034799,2]
[377258692,1754307048848,-1269.89,0.00034799,2]
[377258694,1754307048858,-1269.89,0.00034799,2]
[377258696,1754307048868,-1269.89,0.00034799,2]
[377258698,1754307048878,-1269.89,0.00034799,2]
[377258700,1754307048889,-1269.89,0.00034799,2]
[377258702,1754307048900,-1269.89,0.00034799,2]
[377258704,1754307048909,-1269.99998087,0.00034799,2]
[377258706,1754307048918,-460.0,0.00034811,2]
[377258708,1754307048929,-600.49,0.00034811,2]
[377258710,1754307048939,-460.0,0.00034811,2]
[377258712,1754307048949,-460.0,0.00034811,2]
[377258714,1754307048959,-590.38303799,0.00034811,2]
[377258716,1754307048969,-561.74783726,0.00034811,2]
[377258718,1754307048978,-153.22832876,0.00034811,2]
[377258720,1754307048988,-460.0,0.00034811,2]
[377258722,1754307048997,-460.0,0.00034811,2]
[377258724,1754307049008,-511.36984287,0.00034811,2]
[377258726,1754307049017,-460.0,0.00034811,2]
[377258728,1754307049027,-710.49,0.00034811,2]
[377258730,1754307049037,-460.0,0.00034811,2]
[377258732,1754307049047,-460.0,0.00034811,2]
[377258734,1754307049057,-460.0,0.00034811,2]
[377258736,1754307049067,-151.0,0.00034811,14]
[377258738,1754307049076,-460.0,0.00034811,2]
[377258740,1754307049085,-347.29742257,0.00034811,2]
[377258742,1754307049095,-151.0,0.00034811,14]
[377258744,1754307049105,-502.15,0.00034811,2]
[377258745,1754307049115,-460.0,0.00034811,2]
[377258746,1754307049124,-151.0,0.00034811,14]
[377258747,1754307049134,-151.0,0.00034811,14]
[377258748,1754307049143,-460.0,0.00034811,2]
[377258749,1754307049152,-460.0,0.00034811,2]
[377258750,1754307049161,-151.0,0.00034811,14]
[377258751,1754307049170,-460.0,0.00034811,2]
[377258752,1754307049179,-161.27310143,0.00034811,2]
[377258753,1754307049189,-460.0,0.00034811,2]
[377258754,1754307049198,-460.0,0.00034811,2]
[377258755,1754307049208,-460.0,0.00034811,2]
[377258756,1754307049217,-460.0,0.00034811,2]
[377258757,1754307049226,-460.0,0.00034811,2]
[377258758,1754307049235,-501.24,0.00034811,2]
[377258759,1754307049245,-968.61,0.00034811,2]
[377258760,1754307049254,-460.0,0.00034811,2]
[377258761,1754307049263,-460.0,0.00034811,2]
[377258762,1754307049273,-460.0,0.00034811,2]
[377258763,1754307049283,-460.0,0.00034811,2]
[377258764,1754307049293,-2255.56,0.00034811,2]
[377258765,1754307049302,-1911.53,0.00034811,2]
[377258766,1754307049312,-460.0,0.00034811,2]
[377258767,1754307049321,-345.18712642,0.00034811,2]
[377258768,1754307049330,-975.57,0.00034811,2]
[377258769,1754307049339,-460.0,0.00034811,2]
[377258770,1754307049349,-556.89,0.00034811,2]
[377258772,1754307049357,-460.0,0.00034811,2]
[377258773,1754307049366,-460.0,0.00034811,2]
[377258775,1754307049376,-12560.16,0.00034811,2]
[377258777,1754307049385,-1006.04,0.00034811,2]
[377258779,1754307049394,-1293.99,0.00034811,2]
[377258781,1754307049403,-460.0,0.00034811,2]
[377258783,1754307049413,-7797.19838886,0.00034863,2]
[377258785,1754307049422,-460.0,0.00034884,2]
[377258787,1754307049431,-1432.61,0.00034884,2]
[377258789,1754307049440,-1331.63,0.00034884,2]
[377258791,1754307049449,-2437.61,0.00034884,2]
[377258793,1754307049459,-460.0,0.00034884,2]
[377258794,1754307049468,-576.18,0.00034884,2]
[377258796,1754307049477,-484.84,0.00034884,2]
[377258798,1754307049486,-1032.38,0.00034884,2]
[377258800,1754307049496,-800.71,0.00034884,2]
[377258802,1754307049506,-574.43,0.00034884,2]
[377258804,1754307049515,-602.09,0.00034884,2]
[377258806,1754307049525,-1927.17,0.00034884,2]
[377258808,1754307049534,-460.0,0.00034884,2]
[377258810,1754307049543,-1361.43,0.00034884,2]
[377258812,1754307049552,-1317.98,0.00034884,2]
[377258814,1754307049561,-774.01,0.00034884,2]
[377258816,1754307049571,-781.04,0.00034884,2]
[377258818,1754307049580,-678.91,0.00034884,2]
[377258820,1754307049590,-1272.59,0.00034884,2]
[377258822,1754307049599,-151.0,0.000349,17]
[377258824,1754307049609,-151.0,0.000349,14]
[377258826,1754307049618,-151.0,0.000349,14]
[377258828,1754307049627,-151.0,0.000349,14]
[377258830,1754307049637,-400.6904576,0.00034932,30]
[377258832,1754307049647,-153.0,0.00034932,30]
[377258834,1754307049659,-153.0,0.00034932,30]
[377258836,1754307049669,-159.4497964,0.00034932,30]
[377258838,1754307049678,-153.0,0.00034932,30]
[377258840,1754307049688,-426.496133,0.00034932,30]
[377258842,1754307049698,-153.0,0.00034932,30]
[377258844,1754307049708,-160.0,0.00034932,2]
[377258846,1754307049717,-2308.14123352,0.00034934,31]
[377258848,1754307049727,-151.0,0.00034935,14]
[377258850,1754307049737,-358.0,0.00034943,120]
[377258852,1754307049746,-5636.1,0.00034944,2]
[377258854,1754307049755,-358.0,0.00034953,120]
[377258856,1754307049765,-150.5,0.00034954,120]
[377258858,1754307049775,-5636.1,0.00034954,2]
[377258860,1754307049784,-5636.1,0.00034954,2]
[377258862,1754307049794,-959.79,0.00034955,2]
[377258864,1754307049804,-866.75,0.00034955,2]
[377258866,1754307049813,-6664.29,0.00034955,2]
[377258868,1754307049823,-460.0,0.00034955,2]
[377258870,1754307049832,-925.89,0.00034955,2]
[377258872,1754307049842,-151.0,0.00034955,14]
[377258874,1754307049852,-4846.91,0.00034955,2]
[377258876,1754307049862,-151.0,0.00034955,14]
[377258878,1754307049872,-190.244408,0.00034955,14]
[377258888,1754307049958,-190.244408,0.00034955,14]
[377258890,1754307049970,-14123.6,0.00034955,2]
[377258892,1754307049978,-460.0,0.00034955,2]
[377258894,1754307049988,-5636.1,0.00034956,2]
[377258896,1754307049998,-633.62,0.00034956,2]
[377258898,1754307050007,-607.22,0.00034956,2]
[377258900,1754307050017,-1064.31,0.00034956,2]
[377258902,1754307050027,-462.66,0.00034956,2]
[377258904,1754307050036,-460.0,0.00034956,2]
[377258906,1754307050046,-460.0,0.00034956,2]
[377258908,1754307050055,-5204.75,0.00034956,2]
[377258910,1754307050064,-460.0,0.00034956,2]
[377258912,1754307050074,-828.51,0.00034956,2]
[377258914,1754307050083,-460.0,0.00034956,2]
[377258915,1754307050094,-151.83738,0.00034956,14]
[377258917,1754307050103,-712.28,0.00034956,2]
[377258919,1754307050114,-12779.24,0.00034956,2]
[377258921,1754307050123,-1146.78,0.00034956,2]
[377258923,1754307050133,-262.469383,0.00034956,14]
[377258925,1754307050142,-661.39,0.00034956,2]
[377258927,1754307050151,-262.469383,0.00034956,14]
[377258929,1754307050162,-479.76,0.00034956,2]
[377258931,1754307050174,-1158.97,0.00034956,2]
[377258933,1754307050183,-1681.31,0.00034956,2]
[377258935,1754307050193,-460.0,0.00034956,2]
[377258937,1754307050205,-943.85,0.00034956,2]
[377258939,1754307050215,-579.45,0.00034956,2]
[377258941,1754307050224,-460.0,0.00034956,2]
[377258943,1754307050234,-166.20994,0.00034956,14]
[377258945,1754307050243,-166.20994,0.00034956,14]
[377258947,1754307050253,-553.73,0.00034956,2]
[377258949,1754307050262,-460.0,0.00034957,2]
[377258951,1754307050273,-460.0,0.00034957,2]
[377258953,1754307050282,-772.58,0.00034958,2]
[377258955,1754307050291,-772.75034802,0.00034958,2]
[377258957,1754307050301,-5636.1,0.00034962,2]
[377258958,1754307050310,-358.0,0.00034963,120]
[377258960,1754307050321,-151.0,0.00034963,14]
[377258962,1754307050330,-151.0,0.00034963,14]
[377258964,1754307050340,-151.0,0.00034963,14]
[377258966,1754307050350,-237.567614,0.00034963,14]
[377258968,1754307050359,-165.576034,0.00034963,14]
[377258970,1754307050368,-165.576034,0.00034963,14]
[377258972,1754307050377,-151.0,0.00034963,14]
[377258974,1754307050386,-5636.1,0.00034963,2]
[377258976,1754307050396,-240.883682,0.00034964,14]
[377258978,1754307050405,-3578.23,0.00034964,2]
[377258980,1754307050415,-460.0,0.00034964,2]
[377258982,1754307050424,-461.22766692,0.00034964,2]
[377258984,1754307050435,-460.0,0.00034964,2]
[377258986,1754307050444,-5636.1,0.00034965,2]
[377258988,1754307050454,-1938.15085851,0.00034966,2]
[377258991,1754307050468,-755.8897517,0.00034966,2]
[377258993,1754307050483,-532.44284578,0.00034966,2]
[377258996,1754307050499,-460.0,0.00034134,2]
[377258998,1754307050510,-2409.61654401,0.00034966,2]
[377259000,1754307050521,-151.0,0.00034967,14]
[377259001,1754307050531,-151.0,0.00034967,14]
[377259003,1754307050540,-151.0,0.00034967,14]
[377259005,1754307050550,-152.207508,0.00034967,14]
[377259007,1754307050559,-151.0,0.00034967,14]
[377259009,1754307050568,-151.0,0.00034967,14]
[377259011,1754307050578,-151.0,0.00034967,14]
[377259013,1754307050587,-151.0,0.00034967,14]
[377259015,1754307050598,-151.0,0.00034967,14]
[377259017,1754307050608,-265.07602956,0.00034967,2]
[377259019,1754307050617,-3753.95903346,0.00034967,2]
[377259112,1754307051627,-310.78149978,0.00033397,2]
[377259113,1754307051638,-460.0,0.00033788,2]
[377259114,1754307051647,-460.0,0.00033989,2]
[377259115,1754307051658,-460.0,0.00034062,2]
[377259116,1754307051669,-460.0,0.00034263,2]
[377259117,1754307051678,-427.64,0.00034336,2]
[377259118,1754307051686,-460.0,0.00034408,2]
[377259119,1754307051696,-404.19,0.00034425,10]
[377259120,1754307051704,-151.0,0.00034469,14]
[377259121,1754307051714,-1154.004603,0.00034469,14]
[377259122,1754307051724,-460.0,0.00034537,2]
[377259123,1754307051733,-151.0,0.0003461,14]
[377259124,1754307051742,-1154.004603,0.00034682,14]
[377259125,1754307051751,-460.0,0.00034682,2]
[377259126,1754307051760,-151.0,0.00034793,14]
[377259127,1754307051770,-1154.004603,0.00034793,14]
[377259128,1754307051779,-460.0,0.00034811,2]
[377259129,1754307051788,-151.0,0.00034944,14]
[377259130,1754307051797,-460.0,0.00034956,2]
[377259131,1754307051806,-1154.004603,0.00034956,14]
[377259132,1754307051815,-1882.14096654,0.00034967,2]
[377259133,1754307051824,-192.75605149,0.00034968,2]
[377259134,1754307051833,-5636.1,0.00034968,2]
[377259135,1754307051842,-5636.1,0.00034968,2]
[377259136,1754307051852,-5636.1,0.00034968,2]
[377259137,1754307051861,-5636.1,0.00034968,2]
[377259138,1754307051871,-5636.1,0.00034968,2]
[377259139,1754307051880,-5636.1,0.00034968,2]
[377259141,1754307051889,-5636.1,0.00034968,2]
[377259144,1754307051908,-5636.3054195,0.00034968,2]
[377259147,1754307051928,-151.0,0.00034968,14]
[377259150,1754307051945,-151.0,0.00034968,14]
[377259153,1754307051963,-190.244408,0.00034968,14]
[377259156,1754307051984,-190.244408,0.00034968,14]
[377259158,1754307052001,-151.0,0.00034968,14]
[377259161,1754307052017,-151.0,0.00034968,14]
[377259163,1754307052033,-500.0,0.00034973,5]
[377259166,1754307052047,-500.0,0.00034973,5]
[377259169,1754307052063,-500.0,0.00034973,5]
[377259171,1754307052082,-150.0,0.00034973,3]
[377259174,1754307052101,-150.0,0.00034973,5]
[377259176,1754307052113,-1500.0,0.00034976,5]
[377259179,1754307052132,-822.37,0.00034983,2]
[377259182,1754307052146,-262.469383,0.00034983,14]
[377259184,1754307052161,-262.469383,0.00034983,14]
[377259187,1754307052176,-5034.96,0.00034983,2]
[377259189,1754307052189,-601.46,0.00034983,2]
[377259192,1754307052205,-166.20994,0.00034983,14]
[377259194,1754307052219,-166.20994,0.00034983,14]
[377259197,1754307052234,-1154.004603,0.00034983,14]
[377259199,1754307052248,-151.0,0.00034988,14]
[377259202,1754307052262,-151.0,0.00034988,14]
[377259204,1754307052275,-151.0,0.00034988,14]
[377259207,1754307052290,-286.094374,0.00034988,14]
[377259209,1754307052304,-286.094374,0.00034988,14]
[377259212,1754307052319,-151.0,0.00035,20]
[377259214,1754307052333,-933.65433478,0.00035,120]
[377259216,1754307052348,-165.999999,0.00035,2]
[377259219,1754307052363,-30000.0,0.00035,30]
[377259221,1754307052377,-329.65,0.00035008,2]
[377259224,1754307052391,-1000.0,0.00035019,5]
[377259226,1754307052405,-1000.0,0.00035021,5]
[377259229,1754307052419,-1000.0,0.00035021,5]
[377259231,1754307052433,-250.0,0.00035021,5]
[377259234,1754307052447,-1011.05840491,0.00035021,5]
[377259236,1754307052461,-1000.0,0.00035021,5]
[377259239,1754307052475,-1000.0,0.00035021,5]
[377259241,1754307052488,-1021.44997196,0.00035021,5]
[377259243,1754307052503,-153.69797862,0.00035021,5]
[377259246,1754307052517,-504.11902981,0.00035021,5]
[377259248,1754307052527,-1000.0,0.00035021,5]
[377259250,1754307052537,-800.7,0.00035041,2]
[377259252,1754307052546,-899.5,0.00035041,2]
[377259254,1754307052555,-2915.95,0.00035041,2]
[377259256,1754307052565,-622.71,0.00035041,2]
[377259258,1754307052576,-2632.88,0.00035041,2]
[377259260,1754307052585,-460.0,0.00035041,2]
[377259262,1754307052595,-460.0,0.00035057,2]
[377259264,1754307052605,-460.0,0.00035057,2]
[377259266,1754307052614,-460.0,0.00035057,2]
[377259268,1754307052624,-460.0,0.00035057,2]
[377259270,1754307052634,-460.0,0.00035057,2]
[377259272,1754307052645,-796.57,0.00035057,2]
[377259274,1754307052659,-838.57,0.00035057,2]
[377259277,1754307052669,-238.5225579,0.00035057,2]
[377259279,1754307052679,-580.22,0.00035057,2]
[377259281,1754307052690,-460.0,0.00035057,2]
[377259283,1754307052700,-460.0,0.00035057,2]
[377259285,1754307052709,-638.8,0.00035057,2]
[377259287,1754307052719,-486.63,0.00035057,2]
[377259310,1754307052939,-779.46,0.00035057,2]
[377259313,1754307052959,-1618.74,0.00035057,2]
[377259315,1754307052971,-1885.43,0.00035057,2]
[377259317,1754307052982,-460.0,0.00035057,2]
[377259319,1754307052992,-776.69,0.00035057,2]
[377259321,1754307053001,-700.46,0.00035057,2]
[377259323,1754307053011,-460.0,0.00035057,2]
[377259325,1754307053020,-322.57817217,0.00035057,2]
[377259332,1754307053083,-2025.72182783,0.00035057,2]
[377259334,1754307053093,-460.0,0.00035057,2]
[377259337,1754307053105,-155.348167,0.00035062,14]
[377259338,1754307053117,-152.827228,0.00035062,14]
[377259340,1754307053127,-153.027847,0.00035062,14]
[377259342,1754307053137,-239.287922,0.00035062,14]
[377259344,1754307053147,-165.576034,0.00035062,14]
[377259346,1754307053156,-165.576034,0.00035062,14]
[377259348,1754307053165,-151.0,0.00035062,14]
[377259350,1754307053175,-685.07,0.00035062,2]
[377259352,1754307053184,-2827.23,0.00035062,2]
[377259354,1754307053193,-543.42,0.00035062,2]
[377259356,1754307053203,-2216.52,0.00035062,2]
[377259358,1754307053212,-460.0,0.00035062,2]
[377259360,1754307053222,-460.0,0.00035062,2]
[377259362,1754307053231,-389.16094194,0.00035063,2]
[377259364,1754307053240,-460.0,0.00035064,2]
[377259366,1754307053249,-500.68,0.00035064,2]
[377259368,1754307053258,-151.0,0.00035064,14]
[377259370,1754307053268,-883.57,0.00035064,2]
[377259372,1754307053277,-207.11908893,0.00035064,2]
[377259427,1754307053810,2972.029,0.000333,2]
[377262597,1754307103807,177.55,0.000333,30]
[377262778,1754307118107,150.0,0.00026665,2]
[377262780,1754307143488,200.0,0.00032205,15]
[377262781,1754307152469,500.0,0.00030075,7]
[377262782,1754307171040,612.63953777,0.00032856,2]
[377262783,1754307173474,157.82,0.00031603,30]
[377262784,1754307174408,157.82,0.00032811,30]
[377262785,1754307203041,436.46369172,0.00033296,2]
[377262786,1754307209673,291.818682,0.00032194,120]
[377262787,1754307220797,253.59126,0.00025778,2]
[377262788,1754307221250,200.38913709,0.00026044,2]
[377262789,1754307222678,-500.0,0.00033373,5]
[377262790,1754307222704,-194.92,0.00033386,10]
[377262791,1754307222733,-41562.1285529,0.00033387,2]
[377262792,1754307222779,-6812.91606235,0.00033387,2]
[377262793,1754307222817,-500.0,0.00033395,7]
[377262794,1754307222852,-500.0,0.00033395,7]
[377262795,1754307222885,-500.0,0.00033395,7]
[377262796,1754307222919,-500.0,0.00033395,7]
[377262797,1754307222959,-500.0,0.00033395,7]
[377262798,1754307223018,-332.97615707,0.00033395,7]
[377262799,1754307223064,-500.0,0.00033395,7]
[377262800,1754307223103,-500.0,0.00033395,7]
[377262801,1754307223136,-500.0,0.00033395,7]
[377262802,1754307223172,-500.0,0.00033395,7]
[377262803,1754307223211,-500.0,0.00033395,7]
[377262804,1754307223249,-500.0,0.00033395,7]
[377262805,1754307223279,-500.0,0.00033395,7]
[377262806,1754307223308,-500.0,0.00033395,7]
[377262807,1754307223344,-500.0,0.00033395,7]
[377262808,1754307223373,-500.0,0.00033395,7]
[377262809,1754307223411,-500.0,0.00033395,7]
[377262810,1754307223440,-218.8421865,0.00033395,7]
[377262811,1754307223475,-1600.0,0.00033395,3]
[377262812,1754307223506,-400.0,0.00033395,2]
[377262813,1754307223535,-346.03719715,0.00033395,7]
[377262814,1754307223564,-50000.0,0.00033396,2]
[377262815,1754307223594,-500.0,0.00033396,2]
[377262816,1754307223627,-500.0,0.00033396,2]
[377262817,1754307223661,-500.0,0.00033396,2]
[377262818,1754307223691,-500.0,0.00033396,2]
[377262819,1754307223722,-500.0,0.00033396,2]
[377262820,1754307223757,-500.0,0.00033396,2]
[377262821,1754307223788,-500.0,0.00033396,2]
[377262822,1754307223820,-500.0,0.00033396,2]
[377262823,1754307223852,-500.0,0.00033396,2]
[377262824,1754307223883,-500.0,0.00033396,2]
[377262825,1754307223914,-500.0,0.00033396,2]
[377262826,1754307223946,-500.0,0.00033396,2]
[377262827,1754307223979,-500.0,0.00033396,2]
[377262828,1754307224006,-500.0,0.00033396,2]
[377262829,1754307224033,-366.76455605,0.00033396,2]
[377262830,1754307224060,-500.0,0.00033396,2]
[377262831,1754307224087,-500.0,0.00033396,2]
[377262832,1754307224115,-500.0,0.00033396,2]
[377262833,1754307224142,-500.0,0.00033396,2]
[377262834,1754307224174,-500.0,0.00033396,2]
[377262835,1754307224202,-500.0,0.00033396,2]
[377262836,1754307224237,-500.0,0.00033396,2]
[377262837,1754307224268,-500.0,0.00033396,2]
[377262838,1754307224298,-500.0,0.00033396,2]
[377262839,1754307224328,-500.0,0.00033396,2]
[377262840,1754307224352,-500.0,0.00033396,2]
[377262841,1754307224375,-500.0,0.00033396,2]
[377262842,1754307224397,-500.0,0.00033396,2]
[377262843,1754307224419,-594.07944978,0.00033396,2]
[377262844,1754307224630,-500.0,0.00033396,2]
[377262845,1754307224666,-500.0,0.00033396,2]
[377262846,1754307224690,-500.0,0.00033396,2]
[377262847,1754307224712,-500.0,0.00033396,2]
[377262848,1754307224734,-500.0,0.00033396,2]
[377262849,1754307224761,-500.0,0.00033396,2]
[377262850,1754307224785,-500.0,0.00033396,2]
[377262851,1754307224808,-500.0,0.00033396,2]
[377262852,1754307224832,-500.0,0.00033396,2]
[377262853,1754307224854,-500.0,0.00033396,2]
[377262854,1754307224876,-500.0,0.00033396,2]
[377262855,1754307224898,-500.0,0.00033396,2]
[377262856,1754307224921,-500.0,0.00033396,2]
[377262857,1754307224945,-460.0,0.00033396,2]
[377262858,1754307224968,-500.0,0.00033396,2]
[377262859,1754307224990,-500.0,0.00033396,2]
[377262860,1754307225014,-500.0,0.00033396,2]
[377262861,1754307225036,-500.0,0.00033396,2]
[377262862,1754307225058,-500.0,0.00033396,2]
[377262863,1754307225081,-500.0,0.00033396,2]
[377262864,1754307225102,-500.0,0.00033396,2]
[377262865,1754307225124,-500.0,0.00033396,2]
[377262866,1754307225146,-500.0,0.00033396,2]